[Event "Titled Tuesday Blitz August 02 Early 2022"]
[White "Oparin, Grigoriy"]
[Black "Srihari L R"]
[WhiteFideId "24125890"]
[BlackFideId "46617116"]
[WhiteElo "2639"]
[BlackElo "2170"]
[Result "0-1"]
[Round "07"]
[TimeControl "180+1"]
[Date "2022.08.02"]
[WhiteClock "0:01:02"]
[BlackClock "0:00:29"]

1. e4 {[%clk 0:03:00]}  c5 {[%clk 0:02:59]} 2. Nf3 {[%clk 0:03:01]}  d6 {[%clk 0:02:58]} 3. d4 {[%clk 0:03:02]}  cxd4 {[%clk 0:02:59]} 4. Nxd4 {[%clk 0:03:02]}  Nf6 {[%clk 0:03:00]} 5. Nc3 {[%clk 0:03:03]}  Nc6 {[%clk 0:03:00]} 6. Bg5 {[%clk 0:03:02]}  e6 {[%clk 0:02:59]} 7. Qd2 {[%clk 0:03:01]}  Be7 {[%clk 0:02:59]} 8. O-O-O {[%clk 0:02:58]}  a6 {[%clk 0:02:58]} 9. Nxc6 {[%clk 0:02:55]}  bxc6 {[%clk 0:02:59]} 10. Bc4 {[%clk 0:02:53]}  d5 {[%clk 0:02:55]} 11. Bb3 {[%clk 0:02:53]}  O-O {[%clk 0:02:41]} 12. h4 {[%clk 0:02:51]}  a5 {[%clk 0:02:40]} 13. Rhe1 {[%clk 0:02:33]}  Bb7 {[%clk 0:02:20]} 14. f3 {[%clk 0:02:32]}  Re8 {[%clk 0:02:14]} 15. g4 {[%clk 0:02:31]}  Qb6 {[%clk 0:01:59]} 16. Be3 {[%clk 0:02:26]}  Qc7 {[%clk 0:01:55]} 17. h5 {[%clk 0:02:20]}  Red8 {[%clk 0:01:53]} 18. g5 {[%clk 0:02:18]}  Nxh5 {[%clk 0:01:51]} 19. exd5 {[%clk 0:02:16]}  cxd5 {[%clk 0:01:49]} 20. a4 {[%clk 0:01:56]}  d4 {[%clk 0:01:30]} 21. Bxd4 {[%clk 0:01:52]}  Bxf3 {[%clk 0:01:29]} 22. Nb5 {[%clk 0:01:38]}  Qf4 {[%clk 0:00:59]} 23. Qxf4 {[%clk 0:01:36]}  Nxf4 {[%clk 0:01:00]} 24. Rd2 {[%clk 0:01:33]}  Bxg5 {[%clk 0:00:59]} 25. Kb1 {[%clk 0:01:33]}  h6 {[%clk 0:00:43]} 26. Rf2 {[%clk 0:01:27]}  Bd5 {[%clk 0:00:41]} 27. Nc7 {[%clk 0:01:19]}  Bxb3 {[%clk 0:00:39]} 28. Nxa8 {[%clk 0:01:17]}  Rxd4 {[%clk 0:00:31]} 29. cxb3 {[%clk 0:01:13]}  Bh4 {[%clk 0:00:31]} 30. Rxf4 {[%clk 0:01:09]}  Rxf4 {[%clk 0:00:30]} 31. Rd1 {[%clk 0:01:08]}  g5 {[%clk 0:00:30]} 32. Rh1 {[%clk 0:01:03]}  Kg7 {[%clk 0:00:29]} 33. Nb6 {[%clk 0:01:04]}  Bf2 {[%clk 0:00:29]} 34. Nc4 {[%clk 0:01:02]}  g4 {[%clk 0:00:29]} 0-1


[Site "https://www.chess.com"]

[Event "Titled Tuesday Blitz August 02 Early 2022"]
[White "Seo, Jung Min"]
[Black "Perera Alfonso, Rene Humberto"]
[WhiteFideId "1734687"]
[BlackFideId "3514722"]
[WhiteElo "2414"]
[BlackElo "2313"]
[Result "1-0"]
[Round "07"]
[TimeControl "180+1"]
[Date "2022.08.02"]
[WhiteClock "0:00:02"]
[BlackClock "0:00:08"]

1. e4 {[%clk 0:03:00]}  c5 {[%clk 0:02:59]} 2. Nf3 {[%clk 0:03:00]}  d6 {[%clk 0:02:59]} 3. c3 {[%clk 0:03:00]}  Nf6 {[%clk 0:02:59]} 4. Be2 {[%clk 0:02:55]}  Nbd7 {[%clk 0:02:58]} 5. Qc2 {[%clk 0:02:54]}  Qc7 {[%clk 0:02:57]} 6. O-O {[%clk 0:02:54]}  b6 {[%clk 0:02:57]} 7. Re1 {[%clk 0:02:54]}  Bb7 {[%clk 0:02:57]} 8. Bf1 {[%clk 0:02:54]}  e6 {[%clk 0:02:56]} 9. d3 {[%clk 0:02:52]}  Be7 {[%clk 0:02:56]} 10. Nbd2 {[%clk 0:02:53]}  O-O {[%clk 0:02:56]} 11. a4 {[%clk 0:02:51]}  a6 {[%clk 0:02:55]} 12. Qd1 {[%clk 0:02:51]}  Rac8 {[%clk 0:02:46]} 13. h3 {[%clk 0:02:50]}  Rfe8 {[%clk 0:02:43]} 14. b3 {[%clk 0:02:45]}  Bf8 {[%clk 0:02:27]} 15. Bb2 {[%clk 0:02:44]}  Qb8 {[%clk 0:02:22]} 16. d4 {[%clk 0:02:43]}  cxd4 {[%clk 0:02:23]} 17. cxd4 {[%clk 0:02:43]}  d5 {[%clk 0:02:08]} 18. e5 {[%clk 0:02:41]}  Ne4 {[%clk 0:02:08]} 19. Nxe4 {[%clk 0:02:38]}  dxe4 {[%clk 0:02:09]} 20. Ng5 {[%clk 0:02:37]}  f5 {[%clk 0:02:08]} 21. Qh5 {[%clk 0:02:27]}  h6 {[%clk 0:01:51]} 22. Qf7+ {[%clk 0:02:26]}  Kh8 {[%clk 0:01:49]} 23. Nxe6 {[%clk 0:02:21]}  Bd5 {[%clk 0:01:47]} 24. Bc4 {[%clk 0:02:04]}  Rxc4 {[%clk 0:01:47]} 25. bxc4 {[%clk 0:02:02]}  Bxe6 {[%clk 0:01:45]} 26. Qh5 {[%clk 0:02:02]}  Bxc4 {[%clk 0:01:35]} 27. Qxf5 {[%clk 0:02:02]}  Qb7 {[%clk 0:01:26]} 28. Qxe4 {[%clk 0:01:53]}  Bd5 {[%clk 0:01:25]} 29. Qg4 {[%clk 0:01:53]}  Bb4 {[%clk 0:01:22]} 30. Re3 {[%clk 0:01:49]}  Nf8 {[%clk 0:01:21]} 31. Ba3 {[%clk 0:01:45]}  Bxa3 {[%clk 0:01:18]} 32. Raxa3 {[%clk 0:01:44]}  Re6 {[%clk 0:01:15]} 33. Rg3 {[%clk 0:01:40]}  Qe7 {[%clk 0:00:57]} 34. f4 {[%clk 0:01:19]}  Rg6 {[%clk 0:00:48]} 35. Qf5 {[%clk 0:01:10]}  Rxg3 {[%clk 0:00:46]} 36. Rxg3 {[%clk 0:01:10]}  b5 {[%clk 0:00:44]} 37. axb5 {[%clk 0:00:59]}  axb5 {[%clk 0:00:45]} 38. Qh5 {[%clk 0:00:35]}  b4 {[%clk 0:00:38]} 39. f5 {[%clk 0:00:35]}  b3 {[%clk 0:00:22]} 40. f6 {[%clk 0:00:35]}  gxf6 {[%clk 0:00:22]} 41. Qxh6+ {[%clk 0:00:31]}  Nh7 {[%clk 0:00:20]} 42. exf6 {[%clk 0:00:24]}  Qxf6 {[%clk 0:00:21]} 43. Qd2 {[%clk 0:00:24]}  Qb6 {[%clk 0:00:15]} 44. Qe1 {[%clk 0:00:09]}  Qb8 {[%clk 0:00:08]} 45. Kh2 {[%clk 0:00:02]}  b2 {[%clk 0:00:08]} 46. Qe7 {[%clk 0:00:02]} 1-0


[Site "https://www.chess.com"]

[Event "Titled Tuesday Blitz August 02 Early 2022"]
[White "Sevian, Samuel"]
[Black "Gareyev, Timur"]
[WhiteFideId "2040506"]
[BlackFideId "14200937"]
[WhiteElo "2692"]
[BlackElo "2559"]
[Result "1-0"]
[Round "07"]
[TimeControl "180+1"]
[Date "2022.08.02"]
[WhiteClock "0:01:26"]
[BlackClock "0:00:39"]

1. e4 {[%clk 0:03:00]}  e5 {[%clk 0:02:58]} 2. Nf3 {[%clk 0:03:00]}  Nc6 {[%clk 0:02:57]} 3. Bb5 {[%clk 0:03:00]}  a6 {[%clk 0:02:57]} 4. Ba4 {[%clk 0:03:00]}  Nf6 {[%clk 0:02:57]} 5. O-O {[%clk 0:03:01]}  Bc5 {[%clk 0:02:57]} 6. Nc3 {[%clk 0:02:59]}  b5 {[%clk 0:02:48]} 7. Bb3 {[%clk 0:02:59]}  d6 {[%clk 0:02:48]} 8. a4 {[%clk 0:02:44]}  Rb8 {[%clk 0:02:45]} 9. axb5 {[%clk 0:02:43]}  axb5 {[%clk 0:02:46]} 10. d3 {[%clk 0:02:43]}  Bg4 {[%clk 0:02:43]} 11. Ne2 {[%clk 0:02:17]}  O-O {[%clk 0:02:36]} 12. c3 {[%clk 0:02:14]}  Bxf3 {[%clk 0:02:35]} 13. gxf3 {[%clk 0:02:15]}  Nh5 {[%clk 0:02:33]} 14. Ng3 {[%clk 0:02:15]}  Qh4 {[%clk 0:02:32]} 15. Kh1 {[%clk 0:02:10]}  Ne7 {[%clk 0:02:29]} 16. d4 {[%clk 0:02:08]}  Bb6 {[%clk 0:02:28]} 17. Rg1 {[%clk 0:02:08]}  Nf4 {[%clk 0:02:17]} 18. Bxf4 {[%clk 0:01:56]}  exf4 {[%clk 0:02:13]} 19. Ne2 {[%clk 0:01:56]}  Ng6 {[%clk 0:02:02]} 20. Qf1 {[%clk 0:01:55]}  Kh8 {[%clk 0:01:58]} 21. Rg4 {[%clk 0:01:54]}  Qh6 {[%clk 0:01:35]} 22. Qg2 {[%clk 0:01:39]}  f5 {[%clk 0:01:34]} 23. exf5 {[%clk 0:01:39]}  Rxf5 {[%clk 0:01:34]} 24. Bc2 {[%clk 0:01:35]}  Rh5 {[%clk 0:01:33]} 25. Bxg6 {[%clk 0:01:33]}  hxg6 {[%clk 0:01:33]} 26. Nxf4 {[%clk 0:01:33]}  Rf5 {[%clk 0:01:22]} 27. Rh4 {[%clk 0:01:33]}  Rh5 {[%clk 0:01:17]} 28. Nxh5 {[%clk 0:01:30]}  gxh5 {[%clk 0:01:18]} 29. Rg1 {[%clk 0:01:30]}  Rg8 {[%clk 0:01:14]} 30. Qg6 {[%clk 0:01:28]}  Qg5 {[%clk 0:00:38]} 31. Rxg5 {[%clk 0:01:26]}  Ba7 {[%clk 0:00:39]} 32. Rgxh5# {[%clk 0:01:26]} 1-0


[Site "https://www.chess.com"]

[Event "Titled Tuesday Blitz August 02 Early 2022"]
[White "Slugin, Sergey"]
[Black "Gurel, Ediz"]
[WhiteFideId "4122569"]
[BlackFideId "44507356"]
[WhiteElo "2358"]
[BlackElo "1894"]
[Result "0-1"]
[Round "07"]
[TimeControl "180+1"]
[Date "2022.08.02"]
[WhiteClock "0:00:06"]
[BlackClock "0:00:08"]

1. c4 {[%clk 0:03:00]}  e5 {[%clk 0:02:59]} 2. Nc3 {[%clk 0:03:01]}  g6 {[%clk 0:03:00]} 3. g3 {[%clk 0:02:54]}  Bg7 {[%clk 0:03:00]} 4. Bg2 {[%clk 0:02:54]}  Ne7 {[%clk 0:02:57]} 5. e4 {[%clk 0:02:51]}  O-O {[%clk 0:02:52]} 6. Nge2 {[%clk 0:02:51]}  Nbc6 {[%clk 0:02:52]} 7. O-O {[%clk 0:02:51]}  d6 {[%clk 0:02:52]} 8. d3 {[%clk 0:02:51]}  f5 {[%clk 0:02:51]} 9. f4 {[%clk 0:02:40]}  Be6 {[%clk 0:02:47]} 10. Be3 {[%clk 0:02:33]}  Qd7 {[%clk 0:02:40]} 11. Rb1 {[%clk 0:02:29]}  Rae8 {[%clk 0:02:30]} 12. Nd5 {[%clk 0:02:26]}  Bf7 {[%clk 0:02:18]} 13. b4 {[%clk 0:02:16]}  Nd4 {[%clk 0:02:16]} 14. Nxd4 {[%clk 0:02:05]}  exd4 {[%clk 0:02:17]} 15. Nxe7+ {[%clk 0:02:03]}  Rxe7 {[%clk 0:02:13]} 16. Bf2 {[%clk 0:02:00]}  fxe4 {[%clk 0:02:00]} 17. Bxe4 {[%clk 0:02:01]}  Rxe4 {[%clk 0:02:00]} 18. dxe4 {[%clk 0:01:59]}  Bxc4 {[%clk 0:02:00]} 19. Re1 {[%clk 0:01:56]}  c5 {[%clk 0:01:58]} 20. a4 {[%clk 0:01:28]}  b6 {[%clk 0:01:43]} 21. a5 {[%clk 0:01:20]}  Be6 {[%clk 0:01:26]} 22. bxc5 {[%clk 0:01:02]}  bxc5 {[%clk 0:01:18]} 23. a6 {[%clk 0:01:02]}  Bg4 {[%clk 0:00:56]} 24. Qb3+ {[%clk 0:01:01]}  Kh8 {[%clk 0:00:56]} 25. Qb7 {[%clk 0:00:59]}  Qe6 {[%clk 0:00:57]} 26. Qxa7 {[%clk 0:00:49]}  Bf3 {[%clk 0:00:53]} 27. f5 {[%clk 0:00:50]}  gxf5 {[%clk 0:00:48]} 28. Rb8 {[%clk 0:00:42]}  fxe4 {[%clk 0:00:38]} 29. Rxf8+ {[%clk 0:00:34]}  Bxf8 {[%clk 0:00:39]} 30. Bxd4+ {[%clk 0:00:30]}  cxd4 {[%clk 0:00:35]} 31. Qxd4+ {[%clk 0:00:31]}  Bg7 {[%clk 0:00:35]} 32. Qa4 {[%clk 0:00:22]}  e3 {[%clk 0:00:19]} 33. a7 {[%clk 0:00:19]}  Qe4 {[%clk 0:00:14]} 34. Qxe4 {[%clk 0:00:15]}  Bxe4 {[%clk 0:00:15]} 35. Rb1 {[%clk 0:00:09]}  Bd4 {[%clk 0:00:09]} 36. Rb8+ {[%clk 0:00:04]}  Kg7 {[%clk 0:00:09]} 37. Kf1 {[%clk 0:00:03]}  Bxa7 {[%clk 0:00:09]} 38. Re8 {[%clk 0:00:03]}  Bd3+ {[%clk 0:00:09]} 39. Ke1 {[%clk 0:00:03]}  Bc5 {[%clk 0:00:09]} 40. Rb8 {[%clk 0:00:02]}  d5 {[%clk 0:00:06]} 41. Rb3 {[%clk 0:00:01]}  Bc4 {[%clk 0:00:05]} 42. Rb7+ {[%clk 0:00:02]}  Kf6 {[%clk 0:00:05]} 43. h3 {[%clk 0:00:02]}  d4 {[%clk 0:00:03]} 44. Kd1 {[%clk 0:00:03]}  d3 {[%clk 0:00:03]} 45. Rc7 {[%clk 0:00:03]}  e2+ {[%clk 0:00:04]} 46. Ke1 {[%clk 0:00:02]}  Bb4+ {[%clk 0:00:04]} 47. Kf2 {[%clk 0:00:03]}  e1=Q+ {[%clk 0:00:05]} 48. Kf3 {[%clk 0:00:04]}  Bd5+ {[%clk 0:00:05]} 49. Kg4 {[%clk 0:00:05]}  Qe4+ {[%clk 0:00:06]} 50. Kh5 {[%clk 0:00:05]}  Qg6+ {[%clk 0:00:07]} 51. Kh4 {[%clk 0:00:06]}  Qg5# {[%clk 0:00:08]} 0-1


[Site "https://www.chess.com"]

[Event "Titled Tuesday Blitz August 02 Early 2022"]
[White "Vasquez Schroeder, Rodrigo"]
[Black "Aradhya, Garg"]
[WhiteFideId "3400042"]
[BlackFideId "25006746"]
[WhiteElo "2567"]
[BlackElo "2203"]
[Result "1/2-1/2"]
[Round "07"]
[TimeControl "180+1"]
[Date "2022.08.02"]
[WhiteClock "0:01:19"]
[BlackClock "0:01:15"]

1. e4 {[%clk 0:03:00]}  e5 {[%clk 0:02:59]} 2. Nf3 {[%clk 0:03:00]}  Nc6 {[%clk 0:02:59]} 3. Bb5 {[%clk 0:03:00]}  a6 {[%clk 0:02:59]} 4. Ba4 {[%clk 0:03:00]}  Nf6 {[%clk 0:02:59]} 5. O-O {[%clk 0:03:01]}  Be7 {[%clk 0:03:00]} 6. Re1 {[%clk 0:03:01]}  b5 {[%clk 0:02:59]} 7. Bb3 {[%clk 0:03:01]}  O-O {[%clk 0:03:00]} 8. h3 {[%clk 0:03:01]}  Na5 {[%clk 0:02:59]} 9. Nxe5 {[%clk 0:02:59]}  Nxb3 {[%clk 0:02:59]} 10. axb3 {[%clk 0:02:59]}  Bb7 {[%clk 0:03:00]} 11. d3 {[%clk 0:02:57]}  d5 {[%clk 0:03:00]} 12. exd5 {[%clk 0:02:56]}  Qxd5 {[%clk 0:02:59]} 13. Nf3 {[%clk 0:02:49]}  Bd6 {[%clk 0:02:59]} 14. Nc3 {[%clk 0:02:48]}  Qh5 {[%clk 0:02:58]} 15. Ne4 {[%clk 0:02:41]}  Nxe4 {[%clk 0:02:55]} 16. dxe4 {[%clk 0:02:41]}  Rfe8 {[%clk 0:02:55]} 17. Nd2 {[%clk 0:02:08]}  Qxd1 {[%clk 0:02:24]} 18. Rxd1 {[%clk 0:02:08]}  Bxe4 {[%clk 0:02:23]} 19. Nxe4 {[%clk 0:02:08]}  Rxe4 {[%clk 0:02:23]} 20. Be3 {[%clk 0:02:07]}  f5 {[%clk 0:02:19]} 21. Rd4 {[%clk 0:02:03]}  Ree8 {[%clk 0:02:14]} 22. Rd3 {[%clk 0:01:55]}  Kf7 {[%clk 0:02:10]} 23. Kf1 {[%clk 0:01:55]}  h6 {[%clk 0:01:53]} 24. Rad1 {[%clk 0:01:54]}  g5 {[%clk 0:01:47]} 25. Rd5 {[%clk 0:01:52]}  Ke6 {[%clk 0:01:47]} 26. Bc5 {[%clk 0:01:46]}  Be5 {[%clk 0:01:46]} 27. c3 {[%clk 0:01:45]}  Bf6 {[%clk 0:01:42]} 28. g4 {[%clk 0:01:41]}  fxg4 {[%clk 0:01:42]} 29. hxg4 {[%clk 0:01:42]}  Rad8 {[%clk 0:01:41]} 30. Rxd8 {[%clk 0:01:38]}  Rxd8 {[%clk 0:01:41]} 31. Rxd8 {[%clk 0:01:35]}  Bxd8 {[%clk 0:01:41]} 32. Ke2 {[%clk 0:01:32]}  Be7 {[%clk 0:01:29]} 33. Bd4 {[%clk 0:01:22]}  c5 {[%clk 0:01:14]} 34. Bg7 {[%clk 0:01:18]}  Kf7 {[%clk 0:01:15]} 35. Be5 {[%clk 0:01:18]}  Ke6 {[%clk 0:01:15]} 36. Bg7 {[%clk 0:01:19]}  Kf7 {[%clk 0:01:15]} 37. Be5 {[%clk 0:01:19]}  Ke6 {[%clk 0:01:15]} 38. Bg7 {[%clk 0:01:19]} 1/2-1/2


[Site "https://www.chess.com"]

[Event "Titled Tuesday Blitz August 02 Early 2022"]
[White "Aditya Mittal"]
[Black "Salem, A.R. Saleh"]
[WhiteFideId "35042025"]
[BlackFideId "9301348"]
[WhiteElo "2830"]
[BlackElo "2965"]
[Result "0-1"]
[Round "08"]
[TimeControl "180+1"]
[Date "2022.08.02"]
[WhiteClock "0:00:02"]
[BlackClock "0:00:28"]

1. d4 {[%clk 0:03:00]}  Nf6 {[%clk 0:02:59]} 2. c4 {[%clk 0:03:01]}  g6 {[%clk 0:03:00]} 3. Nc3 {[%clk 0:03:02]}  Bg7 {[%clk 0:03:01]} 4. e4 {[%clk 0:03:02]}  O-O {[%clk 0:03:01]} 5. Be2 {[%clk 0:03:02]}  d6 {[%clk 0:03:02]} 6. Be3 {[%clk 0:03:03]}  Na6 {[%clk 0:03:00]} 7. h4 {[%clk 0:03:00]}  c5 {[%clk 0:02:59]} 8. d5 {[%clk 0:03:01]}  e6 {[%clk 0:02:58]} 9. dxe6 {[%clk 0:03:01]}  Bxe6 {[%clk 0:02:58]} 10. Nf3 {[%clk 0:03:01]}  Nb4 {[%clk 0:02:53]} 11. Ng5 {[%clk 0:02:54]}  Re8 {[%clk 0:02:52]} 12. Bf4 {[%clk 0:02:44]}  Qb6 {[%clk 0:02:49]} 13. a3 {[%clk 0:02:27]}  Nc6 {[%clk 0:02:48]} 14. Na4 {[%clk 0:02:24]}  Qa5+ {[%clk 0:02:46]} 15. Bd2 {[%clk 0:02:24]}  Qc7 {[%clk 0:02:46]} 16. Bf4 {[%clk 0:02:22]}  Nd4 {[%clk 0:02:46]} 17. O-O {[%clk 0:02:17]}  b5 {[%clk 0:02:46]} 18. Nxe6 {[%clk 0:02:15]}  Rxe6 {[%clk 0:02:47]} 19. Nc3 {[%clk 0:02:02]}  Nxe4 {[%clk 0:02:48]} 20. Nd5 {[%clk 0:01:58]}  Qb7 {[%clk 0:02:48]} 21. Be3 {[%clk 0:01:52]}  Nxe2+ {[%clk 0:02:34]} 22. Qxe2 {[%clk 0:01:52]}  bxc4 {[%clk 0:02:33]} 23. Qxc4 {[%clk 0:01:53]}  Nf6 {[%clk 0:02:32]} 24. Rad1 {[%clk 0:01:33]}  Nxd5 {[%clk 0:02:31]} 25. Rxd5 {[%clk 0:01:34]}  Qxb2 {[%clk 0:02:28]} 26. a4 {[%clk 0:01:26]}  Rae8 {[%clk 0:02:22]} 27. Rfd1 {[%clk 0:01:25]}  a5 {[%clk 0:02:11]} 28. Rxd6 {[%clk 0:01:17]}  Rxd6 {[%clk 0:02:11]} 29. Rxd6 {[%clk 0:01:18]}  Qb1+ {[%clk 0:02:11]} 30. Qf1 {[%clk 0:01:19]}  Qb4 {[%clk 0:02:03]} 31. Qb5 {[%clk 0:01:18]}  Rb8 {[%clk 0:01:51]} 32. Qd3 {[%clk 0:00:48]}  Qb1+ {[%clk 0:01:49]} 33. Qd1 {[%clk 0:00:42]}  Bf8 {[%clk 0:01:30]} 34. Rd5 {[%clk 0:00:38]}  Qe4 {[%clk 0:01:26]} 35. Qf3 {[%clk 0:00:20]}  Rb1+ {[%clk 0:01:22]} 36. Kh2 {[%clk 0:00:20]}  Qxh4+ {[%clk 0:01:19]} 37. Qh3 {[%clk 0:00:20]}  Qxh3+ {[%clk 0:01:16]} 38. Kxh3 {[%clk 0:00:21]}  Rb4 {[%clk 0:01:14]} 39. Rd8 {[%clk 0:00:18]}  Kg7 {[%clk 0:01:14]} 40. Bd2 {[%clk 0:00:04]}  Rxa4 {[%clk 0:01:07]} 41. Bc3+ {[%clk 0:00:04]}  f6 {[%clk 0:01:05]} 42. Rd7+ {[%clk 0:00:05]}  Kg8 {[%clk 0:01:06]} 43. Bxf6 {[%clk 0:00:05]}  Rf4 {[%clk 0:01:04]} 44. Be5 {[%clk 0:00:05]}  Rxf2 {[%clk 0:01:03]} 45. Ra7 {[%clk 0:00:06]}  Rf5 {[%clk 0:01:01]} 46. Bc3 {[%clk 0:00:05]}  c4 {[%clk 0:01:01]} 47. Bxa5 {[%clk 0:00:04]}  Rd5 {[%clk 0:00:56]} 48. g3 {[%clk 0:00:05]}  Rd3 {[%clk 0:00:51]} 49. Rc7 {[%clk 0:00:05]}  Ra3 {[%clk 0:00:48]} 50. Be1 {[%clk 0:00:03]}  Re3 {[%clk 0:00:46]} 51. Ba5 {[%clk 0:00:03]}  Bd6 {[%clk 0:00:37]} 52. Rxc4 {[%clk 0:00:03]}  Rxg3+ {[%clk 0:00:38]} 53. Kh4 {[%clk 0:00:04]}  Rg2 {[%clk 0:00:30]} 54. Bc3 {[%clk 0:00:01]}  h5 {[%clk 0:00:28]} 55. Kh3 {[%clk 0:00:02]}  Rh2# {[%clk 0:00:28]} 0-1


[Site "https://www.chess.com"]

[Event "Titled Tuesday Blitz August 02 Early 2022"]
[White "Aggelis, Nikolaos"]
[Black "Seo, Jung Min"]
[WhiteFideId "4213220"]
[BlackFideId "1734687"]
[WhiteElo "2611"]
[BlackElo "2836"]
[Result "1/2-1/2"]
[Round "08"]
[TimeControl "180+1"]
[Date "2022.08.02"]
[WhiteClock "0:02:08"]
[BlackClock "0:02:07"]

1. d4 {[%clk 0:03:00]}  Nf6 {[%clk 0:03:00]} 2. g3 {[%clk 0:03:01]}  d5 {[%clk 0:02:58]} 3. Nf3 {[%clk 0:03:00]}  Bf5 {[%clk 0:02:58]} 4. Bg2 {[%clk 0:03:00]}  e6 {[%clk 0:02:58]} 5. Nh4 {[%clk 0:02:59]}  Be4 {[%clk 0:02:57]} 6. f3 {[%clk 0:02:58]}  Bg6 {[%clk 0:02:57]} 7. Nxg6 {[%clk 0:02:58]}  hxg6 {[%clk 0:02:58]} 8. O-O {[%clk 0:02:58]}  c5 {[%clk 0:02:58]} 9. c3 {[%clk 0:02:58]}  Nc6 {[%clk 0:02:58]} 10. Be3 {[%clk 0:02:53]}  Qb6 {[%clk 0:02:56]} 11. Qb3 {[%clk 0:02:53]}  Qxb3 {[%clk 0:02:56]} 12. axb3 {[%clk 0:02:53]}  cxd4 {[%clk 0:02:56]} 13. cxd4 {[%clk 0:02:53]}  Bd6 {[%clk 0:02:51]} 14. Nc3 {[%clk 0:02:51]}  Ke7 {[%clk 0:02:51]} 15. Bf2 {[%clk 0:02:51]}  Rhd8 {[%clk 0:02:45]} 16. e4 {[%clk 0:02:50]}  dxe4 {[%clk 0:02:44]} 17. fxe4 {[%clk 0:02:50]}  Ng4 {[%clk 0:02:44]} 18. d5 {[%clk 0:02:44]}  Nb4 {[%clk 0:02:27]} 19. e5 {[%clk 0:02:31]}  Bxe5 {[%clk 0:02:27]} 20. Bc5+ {[%clk 0:02:26]}  Bd6 {[%clk 0:02:27]} 21. Bxd6+ {[%clk 0:02:24]}  Rxd6 {[%clk 0:02:19]} 22. dxe6 {[%clk 0:02:24]}  Rxe6 {[%clk 0:02:19]} 23. Bxb7 {[%clk 0:02:23]}  Rd8 {[%clk 0:02:19]} 24. Rxa7 {[%clk 0:02:19]}  Rd7 {[%clk 0:02:19]} 25. Rfa1 {[%clk 0:02:08]}  Nc6 {[%clk 0:02:07]} 26. Bxc6 {[%clk 0:02:07]}  Rxc6 {[%clk 0:02:07]} 27. Rxd7+ {[%clk 0:02:07]}  Kxd7 {[%clk 0:02:07]} 28. Ra7+ {[%clk 0:02:08]}  Ke6 {[%clk 0:02:07]} 1/2-1/2


[Site "https://www.chess.com"]

[Event "Titled Tuesday Blitz August 02 Early 2022"]
[White "Alexiadis, Hristos"]
[Black "Le, Tuan Minh"]
[WhiteFideId "4249623"]
[BlackFideId "12401153"]
[WhiteElo "2746"]
[BlackElo "2982"]
[Result "0-1"]
[Round "08"]
[TimeControl "180+1"]
[Date "2022.08.02"]
[WhiteClock "0:00:30"]
[BlackClock "0:00:04"]

1. d4 {[%clk 0:03:00]}  d5 {[%clk 0:03:00]} 2. c4 {[%clk 0:03:01]}  c6 {[%clk 0:03:00]} 3. Nf3 {[%clk 0:02:59]}  Nf6 {[%clk 0:03:00]} 4. g3 {[%clk 0:02:59]}  Bf5 {[%clk 0:03:00]} 5. Nc3 {[%clk 0:02:55]}  e6 {[%clk 0:03:00]} 6. Nh4 {[%clk 0:02:53]}  Be4 {[%clk 0:02:49]} 7. f3 {[%clk 0:02:52]}  Bg6 {[%clk 0:02:49]} 8. Qb3 {[%clk 0:02:52]}  Qc8 {[%clk 0:02:43]} 9. e4 {[%clk 0:02:37]}  dxe4 {[%clk 0:02:35]} 10. Nxg6 {[%clk 0:02:37]}  hxg6 {[%clk 0:02:36]} 11. fxe4 {[%clk 0:02:35]}  e5 {[%clk 0:02:31]} 12. dxe5 {[%clk 0:02:06]}  Ng4 {[%clk 0:02:29]} 13. e6 {[%clk 0:02:06]}  Qxe6 {[%clk 0:01:37]} 14. Qxb7 {[%clk 0:02:04]}  Bc5 {[%clk 0:01:37]} 15. Qxa8 {[%clk 0:01:56]}  O-O {[%clk 0:01:36]} 16. Qb7 {[%clk 0:01:53]}  Qf6 {[%clk 0:01:23]} 17. Bf4 {[%clk 0:01:44]}  Qd4 {[%clk 0:01:22]} 18. Be2 {[%clk 0:01:32]}  Rd8 {[%clk 0:01:04]} 19. Rf1 {[%clk 0:01:28]}  Ne3 {[%clk 0:00:20]} 20. Qxf7+ {[%clk 0:01:19]}  Kh7 {[%clk 0:00:20]} 21. Bxe3 {[%clk 0:01:14]}  Qxe3 {[%clk 0:00:21]} 22. Rd1 {[%clk 0:01:13]}  Rxd1+ {[%clk 0:00:17]} 23. Kxd1 {[%clk 0:01:12]}  Na6 {[%clk 0:00:15]} 24. Qf3 {[%clk 0:01:11]}  Qd4+ {[%clk 0:00:15]} 25. Qd3 {[%clk 0:01:11]}  Qe5 {[%clk 0:00:16]} 26. a3 {[%clk 0:01:11]}  Bd4 {[%clk 0:00:16]} 27. Rf4 {[%clk 0:01:02]}  Nc5 {[%clk 0:00:15]} 28. Qc2 {[%clk 0:01:02]}  Be3 {[%clk 0:00:15]} 29. Rh4+ {[%clk 0:01:00]}  Kg8 {[%clk 0:00:15]} 30. b4 {[%clk 0:00:54]}  Qd4+ {[%clk 0:00:13]} 31. Ke1 {[%clk 0:00:50]}  g5 {[%clk 0:00:13]} 32. bxc5 {[%clk 0:00:37]}  gxh4 {[%clk 0:00:13]} 33. Qd3 {[%clk 0:00:35]}  Qxc5 {[%clk 0:00:11]} 34. Qd8+ {[%clk 0:00:34]}  Kf7 {[%clk 0:00:10]} 35. Qd7+ {[%clk 0:00:30]}  Kf6 {[%clk 0:00:03]} 36. Qf5+ {[%clk 0:00:31]}  Qxf5 {[%clk 0:00:03]} 37. exf5 {[%clk 0:00:31]}  Kxf5 {[%clk 0:00:03]} 38. Bf3 {[%clk 0:00:31]}  c5 {[%clk 0:00:03]} 39. gxh4 {[%clk 0:00:31]}  a6 {[%clk 0:00:03]} 40. Ke2 {[%clk 0:00:31]}  Bc1 {[%clk 0:00:03]} 41. a4 {[%clk 0:00:31]}  Ke5 {[%clk 0:00:04]} 42. Kd3 {[%clk 0:00:30]}  Bf4 {[%clk 0:00:04]} 43. h3 {[%clk 0:00:30]}  Bg3 {[%clk 0:00:04]} 44. h5 {[%clk 0:00:30]} 0-1


[Site "https://www.chess.com"]